fUSD/lending_fUSD_20240730
["ID","MTS","AMOUNT","RATE_DAILY","PERIOD"]
[333638415,1722299565128,-500.0,0.00010958,2]
[333638416,1722299565137,-302.58295591,0.00010958,2]
[333638417,1722299565147,-500.0,0.00010958,2]
[333638418,1722299565157,-500.0,0.00010958,2]
[333638419,1722299565167,-367.24,0.00010958,2]
[333638420,1722299565177,-500.0,0.00010958,2]
[333638421,1722299565188,-1500.0,0.00010959,5]
[333638422,1722299565198,-615.0,0.00010959,2]
[333638423,1722299565212,-150.0,0.00010959,2]
[333638424,1722299565222,-250.0,0.00010959,2]
[333638425,1722299565231,-781.0,0.00010959,2]
[333638426,1722299565241,-274.19,0.00010959,2]
[333638427,1722299565251,-228.49,0.00010959,2]
[333638428,1722299565260,-190.41,0.00010959,2]
[333638429,1722299565270,-158.68,0.00010959,2]
[333638430,1722299565280,-793.41,0.00010959,2]
[333638431,1722299565292,-411.0126607,0.00010971,2]
[333638432,1722299565301,-500.0,0.00010973,2]
[333638433,1722299565311,-500.0,0.00010981,2]
[333638434,1722299565320,-2061.46903974,0.00010989,2]
[333638435,1722299565329,-2000.0,0.0001099,2]
[333638436,1722299565339,-500.0,0.0001099,2]
[333638437,1722299565348,-66672.8468031,0.00010992,2]
[333638438,1722299565358,-63165.0424691,0.00010992,2]
[333638439,1722299565367,-59657.238135,0.00010992,2]
[333638440,1722299565377,-2995.5015135,0.00010994,2]
[333638441,1722299565386,-467.0978918,0.00010994,2]
[333638442,1722299565396,-1663.6941225,0.00010994,2]
[333638443,1722299565405,-170.239824,0.00010996,2]
[333638444,1722299565414,-1465.968,0.00010997,2]
[333638445,1722299565424,-513.91505016,0.00010999,2]
[333638446,1722299565435,-2000.0,0.00010999,2]
[333638447,1722299565446,-2000.0,0.00010999,2]
[333638448,1722299565455,-2000.0,0.00010999,2]
[333638449,1722299565464,-2000.0,0.00010999,2]
[333638450,1722299565474,-2000.0,0.00010999,2]
[333638451,1722299565483,-2000.0,0.00010999,2]
[333638452,1722299565492,-2000.0,0.00010999,2]
[333638453,1722299565502,-500.0,0.00010999,2]
[333638454,1722299565511,-4509.15976602,0.00010999,2]
[333638455,1722299565520,-48681.03212513,0.00011,2]
[333638456,1722299565530,-166723.33821526,0.00011,2]
[333638457,1722299565539,-475385.55333994,0.00011,2]
[333638458,1722299566757,-423.95581672,0.00011,2]
[333638459,1722299566768,-1067.08377648,0.00011,2]
[333638460,1722299566789,-500.0,0.00010958,2]
[333638461,1722299566799,-1487.44,0.00011,2]
[333638462,1722299566812,-1842.2,0.00011,2]
[333638463,1722299567974,-1659.95,0.00010766,2]
[333638464,1722299567986,-1771.4412455,0.00010766,2]
[333638465,1722299567999,-4068.6087545,0.00010766,2]
[333638466,1722299568008,-1254.0,0.00010894,2]
[333638467,1722299568018,-500.0,0.00010958,2]
[333638468,1722299568028,-500.0,0.00010958,2]
[333638469,1722299568038,-500.0,0.00010958,2]
[333638470,1722299568048,-500.0,0.00010958,2]
[333638471,1722299568058,-500.0,0.00010958,2]
[333638472,1722299568068,-1000.0,0.00010958,2]
[333638473,1722299568077,-500.0,0.00010958,2]
[333638474,1722299568087,-500.0,0.00010958,2]
[333638475,1722299568096,-500.0,0.00010958,2]
[333638476,1722299568105,-500.0,0.00010958,2]
[333638477,1722299568115,-500.0,0.00010958,2]
[333638478,1722299568125,-500.0,0.00010958,2]
[333638479,1722299568135,-500.0,0.00010958,2]
[333638480,1722299568145,-219.17145583,0.00010958,2]
[333638481,1722299568155,-500.0,0.00010958,2]
[333638482,1722299568164,-500.0,0.00010958,2]
[333638483,1722299568173,-500.0,0.00010958,2]
[333638484,1722299568183,-500.0,0.00010958,2]
[333638485,1722299568192,-90217.89197657,0.00011,2]
[333638486,1722299568204,-690.9903,0.00011,2]
[333638487,1722299568222,-500.0,0.00010958,2]
[333638488,1722299568232,-660771.98374823,0.00011,2]
[333638489,1722299568244,-6635.70000001,0.00011,2]
[333638490,1722299568255,-6626.75856988,0.00011,2]
[333638491,1722299568268,-372345.22548002,0.00011,2]
[333638492,1722299568287,-500.0,0.00010958,2]
[333638493,1722299568296,-422.42628103,0.00011,2]
[333638494,1722299568309,-990.02110033,0.00011,2]
[333638495,1722299568321,-13262.6016,0.00011,2]
[333638496,1722299579494,5000.0,0.00027,120]
[333638497,1722299599149,492.730369,0.00024932,120]
[333638498,1722299696431,150.0,0.00015,30]
[333638501,1722299962577,1014.62,8.219e-05,2]
[333638502,1722299997896,77.59,8.219e-05,2]
[333638504,1722300356743,5670.0,0.00027,120]
[333638512,1722300632214,-150.0,8.192e-05,2]
[333638513,1722300632224,-1683.9312762,8.218e-05,2]
[333638514,1722300632234,-1301.697,8.219e-05,2]
[333638515,1722300632243,-963.88,8.219e-05,2]
[333638516,1722300632252,-67.09908966,8.999e-05,2]
[333638517,1722300632270,-232.90091034,8.999e-05,2]
[333638518,1722300632279,-6000.0,9e-05,2]
[333638519,1722300632289,-250.0,9.38e-05,2]
[333638520,1722300632299,-1362.22,9.38e-05,2]
[333638521,1722300632309,-4492.72,9.397e-05,2]
[333638522,1722300632318,-512.0,9.429e-05,2]
[333638523,1722300632327,-577.21,9.454e-05,2]
[333638524,1722300632336,-265.25,9.48e-05,2]
[333638525,1722300632345,-513.84,9.529e-05,2]
[333638526,1722300632356,-150.99,9.67e-05,2]
[333638527,1722300632365,-1727.82796419,9.67e-05,2]
[333638528,1722300632387,-654.15090965,9.67e-05,2]
[333638529,1722300632420,-4645.50746471,9.67e-05,2]
[333638530,1722300632448,-3190.9154925,9.67e-05,2]
[333638531,1722300632459,-278.43468715,9.67e-05,2]
[333638537,1722300638128,-294.14390776,9.67e-05,2]
[333638538,1722300638239,-1314.66997757,9.67e-05,2]
[333638539,1722300638251,-10547.76959647,9.67e-05,2]
[333638540,1722300638261,-168.78,9.72e-05,2]
[333638541,1722300638270,-150.0,9.84e-05,2]
[333638542,1722300638280,-152.09,9.841e-05,2]
[333638543,1722300638289,-852.31,9.853e-05,2]
[333638544,1722300638298,-488.0,9.878e-05,2]
[333638545,1722300638308,-256.0,9.899e-05,2]
[333638546,1722300638318,-474.37,0.00010055,2]
[333638547,1722300638327,-1472.41,0.00010131,2]
[333638548,1722300638336,-199.497971,0.00010141,2]
[333638549,1722300638346,-163.857872,0.00010141,2]
[333638550,1722300638357,-470.4,0.00010141,2]
[333638551,1722300638366,-163.857872,0.00010395,2]
[333638552,1722300638376,-963.88,0.00010443,2]
[333638553,1722300638385,-403.0,0.00010574,2]
[333638554,1722300638395,-747.61,0.00010578,2]
[333638555,1722300638405,-512.0,0.00010608,2]
[333638556,1722300638414,-163.857872,0.00010648,2]
[333638557,1722300638423,-349.29,0.00010652,2]
[333638558,1722300638433,-2622.9738,0.00010666,2]
[333638559,1722300638442,-165.7714,0.00010666,2]
[333638560,1722300638452,-3577.6468,0.00010666,2]
[333638561,1722300638461,-1006.5432788,0.00010739,2]
[333638562,1722300638470,-1139.09680487,0.00010739,2]
[333638563,1722300638480,-962.14167567,0.00010739,2]
[333638564,1722300638489,-82.18587924,0.00010748,2]
[333638565,1722300638501,-1390.22412076,0.00010748,2]
[333638566,1722300638510,-461.36,0.00010749,2]
[333638567,1722300638519,-1472.41,0.00010756,2]
[333638568,1722300638528,-1472.41,0.00010756,2]
[333638570,1722300638538,-1472.41,0.00010756,2]
[333638572,1722300638547,-1472.41,0.00010756,2]
[333638574,1722300638557,-1472.41,0.00010756,2]
[333638576,1722300638566,-74.94913865,0.00010756,2]
[333638578,1722300638580,-1397.46086135,0.00010756,2]
[333638580,1722300638590,-610.4172446,0.00010756,2]
[333638583,1722300638607,-465.0766574,0.00010756,2]
[333638584,1722300638618,-396.916098,0.00010756,2]
[333638586,1722300638631,-1472.41,0.00010756,2]
[333638602,1722300638859,-790.933902,0.00010758,2]
[333638605,1722300638883,-6218.79759734,0.00010758,2]
[333638607,1722300638893,-432.64720266,0.00010766,2]
[333638719,1722300640266,-39136.81989734,0.00010766,2]
[333638721,1722300640275,-61156.18010266,0.00010766,2]
[333638723,1722300640286,-1365.02159675,0.00010766,2]
[333638744,1722300640484,-182478.79830059,0.00010766,2]
[333638746,1722300640494,-151.60693971,0.00010798,2]
[333638748,1722300640504,-400.766782,0.000108,2]
[333638750,1722300640513,-151.60693971,0.00010813,2]
[333638752,1722300640523,-200.0,0.00010824,2]
[333638754,1722300640532,-151.60693971,0.00010828,2]
[333638756,1722300640541,-151.60693971,0.00010843,2]
[333638758,1722300640550,-4710.2861107,0.00010848,2]
[333638760,1722300640559,-300.0,0.00010848,2]
[333638762,1722300640569,-150.0,0.00010848,2]
[333638764,1722300640579,-150.0,0.00010848,2]
[333638766,1722300640588,-300.0,0.00010848,2]
[333638768,1722300640598,-191.4948538,0.00010858,2]
[333638770,1722300640609,-160.23878891,0.00010858,2]
[333638772,1722300640619,-205.16636649,0.00010858,2]
[333638774,1722300640632,-151.60693971,0.00010858,2]
[333638776,1722300640642,-1292.99345972,0.00010858,2]
[333638778,1722300640651,-3000.0,0.00010858,2]
[333638780,1722300640660,-966.9596,0.00010858,2]
[333638782,1722300640669,-4710.2861107,0.0001086,2]
[333638784,1722300640678,-4710.2861107,0.00010865,2]
[333638786,1722300640688,-3000.0,0.0001089,2]
[333638788,1722300640697,-1581.0,0.00010898,2]
[333638790,1722300640706,-150.0,0.00010898,2]
[333638792,1722300640715,-195.86,0.00010898,2]
[333638794,1722300640725,-150.0,0.00010898,2]
[333638796,1722300640735,-38384.0,0.00010898,2]
[333638798,1722300640744,-5830.0,0.00010898,2]
[333638800,1722300640753,-183.354,0.00010898,2]
[333638802,1722300640762,-1668.0,0.00010898,2]
[333638804,1722300640771,-1202.0,0.00010898,2]
[333638806,1722300640780,-150.0,0.00010898,2]
[333638808,1722300640789,-5124.0,0.00010898,2]
[333638810,1722300640799,-757.086,0.00010898,2]
[333638812,1722300640808,-150.0,0.00010898,2]
[333638813,1722300640817,-150.0,0.00010898,2]
[333638815,1722300640826,-165.71762376,0.00010899,2]
[333638817,1722300640835,-165.71762376,0.00010899,2]
[333638819,1722300640844,-165.71762376,0.00010899,2]
[333638821,1722300640854,-165.71762376,0.00010899,2]
[333638823,1722300640866,-581.86019737,0.00010899,2]
[333638825,1722300640875,-581.86019729,0.00010899,2]
[333638827,1722300640884,-581.86019729,0.00010899,2]
[333638829,1722300640893,-581.86019729,0.00010899,2]
[333638831,1722300640902,-379.24125214,0.00010899,2]
[333638833,1722300640911,-581.86019729,0.00010899,2]
[333638835,1722300640921,-379.24125214,0.000109,2]
[333638837,1722300640930,-191.4948538,0.000109,2]
[333638839,1722300640939,-200.18472628,0.000109,2]
[333638841,1722300640948,-205.16636648,0.000109,2]
[333638843,1722300640957,-176.86139305,0.000109,2]
[333638845,1722300640966,-176.86139305,0.000109,2]
[333638847,1722300640975,-165.71762376,0.000109,2]
[333638849,1722300640984,-176.86139305,0.000109,2]
[333638851,1722300640993,-176.86139305,0.000109,2]
[333638853,1722300641002,-397.92916646,0.000109,2]
[333638855,1722300641011,-221.07,0.00010904,2]
[333638857,1722300641020,-500.0,0.00010912,2]
[333638859,1722300641029,-536.9428,0.00010945,2]
[333638861,1722300641038,-172.97,0.00010948,2]
[333638863,1722300641047,-1265.87570204,0.00010957,3]
[333638864,1722300641057,-939.22,0.00010957,2]
[333638867,1722300641067,-746.0,0.00010958,2]
[333638869,1722300641076,-505.75006744,0.00010958,2]
[333638871,1722300641086,-500.0,0.00010958,2]
[333638872,1722300641095,-637.58872776,0.00010958,2]
[333638874,1722300641105,-500.0,0.00010958,2]
[333638876,1722300641116,-500.0,0.00010958,2]
[333638878,1722300641126,-207.36,0.00010958,2]
[333638880,1722300641135,-500.0,0.00010958,2]
[333638882,1722300641145,-500.0,0.00010958,2]
[333638884,1722300641155,-500.0,0.00010958,2]
[333638886,1722300641164,-500.0,0.00010958,2]
[333638888,1722300641174,-500.0,0.00010958,2]
[333638890,1722300641184,-500.0,0.00010958,2]
[333638892,1722300641194,-500.0,0.00010958,2]
[333638895,1722300641203,-500.0,0.00010958,2]
[333638896,1722300641213,-500.0,0.00010958,2]
[333638898,1722300641223,-285.46015459,0.00010958,2]
[333638900,1722300641232,-500.0,0.00010958,2]
[333638902,1722300641241,-383.82594634,0.00010958,2]
[333638905,1722300641251,-500.0,0.00010958,2]
[333638907,1722300641260,-500.0,0.00010958,2]
[333638909,1722300641269,-500.0,0.00010958,2]
[333638910,1722300641279,-500.0,0.00010958,2]
[333638912,1722300641288,-500.0,0.00010958,2]
[333638914,1722300641298,-500.0,0.00010958,2]
[333638916,1722300641307,-500.0,0.00010958,2]
[333638918,1722300641316,-500.0,0.00010958,2]
[333638920,1722300641325,-500.0,0.00010958,2]
[333638922,1722300641335,-242.32,0.00010958,2]
[333638924,1722300641344,-500.0,0.00010958,2]
[333638926,1722300641354,-500.0,0.00010958,2]
[333638928,1722300641368,-500.0,0.00010958,2]
[333638930,1722300641378,-272.91857153,0.00010958,2]
[333638932,1722300641388,-500.0,0.00010958,2]
[333638934,1722300641397,-500.0,0.00010958,2]
[333638936,1722300641407,-500.0,0.00010958,2]
[333638938,1722300641416,-500.0,0.00010958,2]
[333638939,1722300641425,-189.86,0.00010958,2]
[333638941,1722300641435,-500.0,0.00010958,2]
[333638943,1722300641444,-500.0,0.00010958,2]
[333638944,1722300641453,-500.0,0.00010958,2]
[333638945,1722300641463,-511.86,0.00010958,2]
[333638946,1722300641472,-500.0,0.00010958,2]
[333638947,1722300641481,-500.0,0.00010958,2]
[333638948,1722300641490,-500.0,0.00010958,2]
[333638949,1722300641499,-500.0,0.00010958,2]
[333638950,1722300641508,-500.0,0.00010958,2]
[333638951,1722300641518,-500.0,0.00010958,2]
[333638953,1722300641527,-497.57638951,0.00010958,2]
[333638954,1722300641536,-500.0,0.00010958,2]
[333638956,1722300641545,-500.0,0.00010958,2]
[333638958,1722300641554,-500.0,0.00010958,2]
[333638960,1722300641563,-500.0,0.00010958,2]
[333638962,1722300641572,-500.0,0.00010958,2]
[333638964,1722300641581,-835.87,0.00010958,2]
[333638966,1722300641590,-500.0,0.00010958,2]
[333638968,1722300641600,-835.87,0.00010958,2]
[333638970,1722300641610,-252.45,0.00010958,2]
[333638971,1722300641620,-835.87,0.00010958,2]
[333638973,1722300641633,-835.87,0.00010958,2]
[333638975,1722300641643,-500.0,0.00010958,2]
[333638977,1722300641652,-308.12,0.00010958,2]
[333638979,1722300641661,-835.87,0.00010958,2]
[333638981,1722300641671,-835.87,0.00010958,2]
[333638983,1722300641680,-835.87,0.00010958,2]
[333638985,1722300641689,-835.87,0.00010958,2]
[333638987,1722300641698,-835.87,0.00010958,2]
[333638988,1722300641709,-835.87,0.00010958,2]
[333638989,1722300641718,-581.93611556,0.00010958,2]
[333638991,1722300641728,-835.87,0.00010958,2]
[333638993,1722300641737,-835.87,0.00010958,2]
[333638995,1722300641746,-835.87,0.00010958,2]
[333638997,1722300641755,-835.87,0.00010958,2]
[333638998,1722300641765,-835.87,0.00010958,2]
[333639000,1722300641775,-835.87,0.00010958,2]
[333639002,1722300641784,-500.0,0.00010958,2]
[333639004,1722300641794,-362.28251021,0.00010958,2]
[333639006,1722300641804,-500.0,0.00010958,2]
[333639008,1722300641814,-835.87,0.00010958,2]
[333639010,1722300641824,-500.0,0.00010958,2]
[333639011,1722300641835,-500.0,0.00010958,2]
[333639013,1722300641844,-835.87,0.00010958,2]
[333639015,1722300641853,-835.87,0.00010958,2]
[333639017,1722300641868,-500.0,0.00010958,2]
[333639019,1722300641878,-835.87,0.00010958,2]
[333639020,1722300641887,-500.0,0.00010958,2]
[333639022,1722300641896,-500.0,0.00010958,2]
[333639024,1722300641905,-500.0,0.00010958,2]
[333639026,1722300641914,-835.87,0.00010958,2]
[333639028,1722300641924,-500.0,0.00010958,2]
[333639030,1722300641933,-500.0,0.00010958,2]
[333639032,1722300641942,-835.87,0.00010958,2]
[333639033,1722300641951,-500.0,0.00010958,2]
[333639035,1722300641960,-500.0,0.00010958,2]
[333639037,1722300641969,-558.34106277,0.00010958,2]
[333639039,1722300641979,-334.18733576,0.00010958,2]
[333639041,1722300641989,-500.0,0.00010958,2]
[333639043,1722300641998,-500.0,0.00010958,2]
[333639045,1722300642007,-500.0,0.00010958,2]
[333639047,1722300642017,-500.0,0.00010958,2]
[333639049,1722300642026,-518.82396941,0.00010958,2]
[333639051,1722300642035,-259.98,0.00010958,2]
[333639052,1722300642043,-256.4058,0.00010958,2]
[333639054,1722300642053,-500.0,0.00010958,2]
[333639056,1722300642062,-500.0,0.00010958,2]
[333639058,1722300642072,-500.0,0.00010958,2]
[333639060,1722300642081,-500.0,0.00010958,2]
[333639062,1722300642090,-500.0,0.00010958,2]
[333639064,1722300642099,-500.0,0.00010958,2]
[333639066,1722300642110,-512.62991051,0.00010958,2]
[333639068,1722300642120,-835.87,0.00010958,2]
[333639070,1722300642130,-500.0,0.00010958,2]
[333639072,1722300642139,-836.101482,0.00010958,2]
[333639074,1722300642149,-500.0,0.00010958,2]
[333639075,1722300642158,-500.0,0.00010958,2]
[333639077,1722300642168,-500.0,0.00010958,2]
[333639079,1722300642177,-500.0,0.00010958,2]
[333639081,1722300642187,-500.0,0.00010958,2]
[333639083,1722300642196,-500.0,0.00010958,2]
[333639085,1722300642206,-500.0,0.00010958,2]
[333639087,1722300642215,-500.0,0.00010958,2]
[333639089,1722300642225,-500.0,0.00010958,2]
[333639091,1722300642235,-500.0,0.00010958,2]
[333639093,1722300642244,-500.0,0.00010958,2]
[333639095,1722300642253,-500.0,0.00010958,2]
[333639097,1722300642262,-500.0,0.00010958,2]
[333639099,1722300642271,-500.0,0.00010958,2]
[333639101,1722300642281,-272.2,0.00010958,2]
[333639103,1722300642291,-500.0,0.00010958,2]
[333639105,1722300642300,-500.0,0.00010958,2]
[333639107,1722300642310,-536.06,0.00010958,2]
[333639108,1722300642320,-500.0,0.00010958,2]
[333639110,1722300642329,-500.0,0.00010958,2]
[333639112,1722300642339,-500.0,0.00010958,2]
[333639114,1722300642348,-500.0,0.00010958,2]
[333639116,1722300642359,-500.0,0.00010958,2]
[333639118,1722300642368,-500.0,0.00010958,2]
[333639120,1722300642377,-500.0,0.00010958,2]
[333639122,1722300642387,-500.0,0.00010958,2]
[333639124,1722300642396,-500.0,0.00010958,2]
[333639126,1722300642406,-500.0,0.00010958,2]
[333639128,1722300642415,-427.1,0.00010958,2]
[333639130,1722300642425,-500.0,0.00010958,2]
[333639132,1722300642434,-500.0,0.00010958,2]
[333639134,1722300642444,-500.0,0.00010958,2]
[333639136,1722300642453,-500.0,0.00010958,2]
[333639138,1722300642462,-500.0,0.00010958,2]
[333639140,1722300642472,-500.0,0.00010958,2]
[333639142,1722300642481,-500.0,0.00010958,2]
[333639144,1722300642490,-500.0,0.00010958,2]
[333639146,1722300642499,-500.0,0.00010958,2]
[333639148,1722300642509,-500.0,0.00010958,2]
[333639150,1722300642518,-500.0,0.00010958,2]
[333639151,1722300642528,-500.0,0.00010958,2]
[333639153,1722300642537,-500.0,0.00010958,2]
[333639155,1722300642546,-500.0,0.00010958,2]
[333639157,1722300642555,-641.24,0.00010958,2]
[333639159,1722300642564,-500.0,0.00010958,2]
[333639161,1722300642574,-500.0,0.00010958,2]
[333639163,1722300642583,-500.0,0.00010958,2]
[333639164,1722300642592,-500.0,0.00010958,2]
[333639166,1722300642601,-500.0,0.00010958,2]
[333639168,1722300642613,-500.0,0.00010958,2]
[333639170,1722300642622,-500.0,0.00010958,2]
[333639172,1722300642636,-500.0,0.00010958,2]
[333639174,1722300642646,-500.0,0.00010958,2]
[333639176,1722300642656,-500.0,0.00010958,2]
[333639178,1722300642665,-500.0,0.00010958,2]
[333639180,1722300642674,-500.0,0.00010958,2]
[333639182,1722300642683,-500.0,0.00010958,2]
[333639184,1722300642693,-500.0,0.00010958,2]
[333639186,1722300642702,-500.0,0.00010958,2]
[333639188,1722300642711,-500.0,0.00010958,2]
[333639190,1722300642720,-500.0,0.00010958,2]
[333639192,1722300642730,-500.0,0.00010958,2]
[333639194,1722300642739,-500.0,0.00010958,2]
[333639196,1722300642748,-500.0,0.00010958,2]
[333639198,1722300642758,-500.0,0.00010958,2]
[333639200,1722300642767,-500.0,0.00010958,2]
[333639202,1722300642776,-500.0,0.00010958,2]
[333639203,1722300642785,-411.23103153,0.00010958,2]
[333639205,1722300642794,-500.0,0.00010958,2]
[333639207,1722300642803,-500.0,0.00010958,2]
[333639209,1722300642812,-500.0,0.00010958,2]
[333639211,1722300642821,-498.5020979,0.00010958,2]
[333639213,1722300642831,-500.0,0.00010958,2]
[333639215,1722300642840,-500.0,0.00010958,2]
[333639217,1722300642850,-553.25733361,0.00010958,2]
[333639219,1722300642862,-500.0,0.00010958,2]
[333639221,1722300642871,-500.0,0.00010958,2]
[333639223,1722300642881,-500.0,0.00010958,2]
[333639225,1722300642890,-500.0,0.00010958,2]
[333639227,1722300642899,-500.0,0.00010958,2]
[333639229,1722300642908,-500.0,0.00010958,2]
[333639231,1722300642918,-500.0,0.00010958,2]
[333639233,1722300642927,-500.0,0.00010958,2]
[333639235,1722300642936,-500.0,0.00010958,2]
[333639237,1722300642946,-500.0,0.00010958,2]
[333639239,1722300642955,-500.0,0.00010958,2]
[333639241,1722300642965,-500.0,0.00010958,2]
[333639243,1722300642974,-500.0,0.00010958,2]
[333639245,1722300642984,-209.69236708,0.00010958,2]
[333639247,1722300642994,-290.66,0.00010958,2]
[333639248,1722300643003,-500.0,0.00010958,2]
[333639250,1722300643011,-500.0,0.00010958,2]
[333639252,1722300643021,-500.0,0.00010958,2]
[333639254,1722300643030,-500.0,0.00010958,2]
[333639256,1722300643040,-500.0,0.00010958,2]
[333639259,1722300643049,-450.02,0.00010958,2]
[333639262,1722300643058,-500.0,0.00010958,2]
[333639265,1722300643068,-500.0,0.00010958,2]
[333639268,1722300643077,-500.0,0.00010958,2]
[333639271,1722300643087,-500.0,0.00010958,2]
[333639274,1722300643096,-569.23260001,0.00010958,2]
[333639277,1722300643106,-500.0,0.00010958,2]
[333639280,1722300643116,-500.0,0.00010958,2]
[333639283,1722300643126,-410.77970244,0.00010958,2]
[333639286,1722300643135,-500.0,0.00010958,2]
[333639289,1722300643145,-500.0,0.00010958,2]
[333639291,1722300643155,-500.0,0.00010958,2]
[333639294,1722300643165,-500.0,0.00010958,2]
[333639297,1722300643175,-500.0,0.00010958,2]
[333639302,1722300643185,-500.0,0.00010958,2]
[333639303,1722300643194,-500.0,0.00010958,2]
[333639306,1722300643204,-500.0,0.00010958,2]
[333639309,1722300643213,-500.0,0.00010958,2]
[333639312,1722300643222,-500.0,0.00010958,2]
[333639314,1722300643232,-500.0,0.00010958,2]
[333639316,1722300643241,-355.71824375,0.00010958,2]
[333639318,1722300643251,-500.0,0.00010958,2]
[333639320,1722300643261,-500.0,0.00010958,2]
[333639322,1722300643271,-500.0,0.00010958,2]
[333639324,1722300643280,-500.0,0.00010958,2]
[333639326,1722300643290,-500.0,0.00010958,2]
[333639327,1722300643300,-500.0,0.00010958,2]
[333639328,1722300643309,-500.0,0.00010958,2]
[333639329,1722300643319,-500.0,0.00010958,2]
[333639330,1722300643329,-500.0,0.00010958,2]
[333639331,1722300643338,-500.0,0.00010958,2]
[333639332,1722300643348,-500.0,0.00010958,2]
[333639333,1722300643359,-500.0,0.00010958,2]
[333639334,1722300643368,-500.0,0.00010958,2]
[333639335,1722300643378,-500.0,0.00010958,2]
[333639337,1722300643387,-500.0,0.00010958,2]
[333639339,1722300643397,-500.0,0.00010958,2]
[333639341,1722300643406,-595.69,0.00010958,2]
[333639343,1722300643415,-500.0,0.00010958,2]
[333639344,1722300643425,-500.0,0.00010958,2]
[333639346,1722300643434,-500.0,0.00010958,2]
[333639348,1722300643443,-500.0,0.00010958,2]
[333639350,1722300643452,-500.0,0.00010958,2]
[333639352,1722300643461,-500.0,0.00010958,2]
[333639354,1722300643470,-500.0,0.00010958,2]
[333639356,1722300643480,-500.0,0.00010958,2]
[333639358,1722300643489,-500.0,0.00010958,2]
[333639360,1722300643498,-500.0,0.00010958,2]
[333639362,1722300643507,-500.0,0.00010958,2]
[333639364,1722300643516,-500.0,0.00010958,2]
[333639366,1722300643526,-500.0,0.00010958,2]
[333639368,1722300643536,-500.0,0.00010958,2]
[333639370,1722300643545,-500.0,0.00010958,2]
[333639372,1722300643554,-500.0,0.00010958,2]
[333639374,1722300643563,-500.0,0.00010958,2]
[333639375,1722300643573,-500.0,0.00010958,2]
[333639377,1722300643582,-500.0,0.00010958,2]
[333639379,1722300643591,-500.0,0.00010958,2]
[333639381,1722300643600,-500.0,0.00010958,2]
[333639383,1722300643612,-500.0,0.00010958,2]
[333639384,1722300643622,-500.0,0.00010958,2]
[333639387,1722300643636,-500.0,0.00010958,2]
[333639388,1722300643645,-500.0,0.00010958,2]
[333639390,1722300643655,-500.0,0.00010958,2]
[333639392,1722300643664,-500.0,0.00010958,2]
[333639394,1722300643675,-314.6,0.00010958,2]
[333639396,1722300643684,-555.88,0.00010958,2]
[333639398,1722300643693,-500.0,0.00010958,2]
[333639400,1722300643703,-500.0,0.00010958,2]
[333639403,1722300643714,-500.0,0.00010958,2]
[333639406,1722300643723,-500.0,0.00010958,2]
[333639409,1722300643733,-500.0,0.00010958,2]
[333639412,1722300643743,-500.0,0.00010958,2]
[333639415,1722300643752,-500.0,0.00010958,2]
[333639418,1722300643761,-500.0,0.00010958,2]
[333639421,1722300643770,-500.0,0.00010958,2]